[Event "Early-Titled-Tuesday-Blitz-February-13-2024"]
[Site "Chess.com"]
[Date "2024.02.13"]
[Round "3"]
[White "ValentinDragnev"]
[Black "Sina_Movahed"]
[Result "0-1"]
[WhiteElo "2749"]
[BlackElo "2997"]
[TimeControl "180+1"]
[EndTime "8:33:08 PST"]
[Termination "Sina_Movahed won on time"]

1. d4 {[%clk 0:03:00.9]} 1... Nf6 {[%clk 0:03:00.1]} 2. Nf3 {[%clk 0:03:01.6]}
2... g6 {[%clk 0:03:00.1]} 3. Bf4 {[%clk 0:03:02.1]} 3... Bg7 {[%clk 0:03:00.4]}
4. e3 {[%clk 0:03:02.8]} 4... O-O {[%clk 0:03:01]} 5. Be2 {[%clk 0:03:03.5]}
5... d6 {[%clk 0:03:01.5]} 6. h3 {[%clk 0:03:04.2]} 6... Nfd7 {[%clk 0:03:01.7]}
7. O-O {[%clk 0:03:03.7]} 7... e5 {[%clk 0:03:01.8]} 8. Bh2 {[%clk 0:03:04.4]}
8... Qe7 {[%clk 0:02:59]} 9. c4 {[%clk 0:03:01]} 9... f5 {[%clk 0:02:56.9]} 10.
Nc3 {[%clk 0:03:01.2]} 10... c6 {[%clk 0:02:51.5]} 11. b4 {[%clk 0:02:40.3]}
11... Na6 {[%clk 0:02:46.8]} 12. b5 {[%clk 0:02:38.6]} 12... Nc7 {[%clk
0:02:46.6]} 13. bxc6 {[%clk 0:02:36.2]} 13... bxc6 {[%clk 0:02:47.5]} 14. Qa4
{[%clk 0:02:30.5]} 14... Bb7 {[%clk 0:02:45.5]} 15. Rab1 {[%clk 0:02:29]} 15...
Nb6 {[%clk 0:02:45]} 16. Qa5 {[%clk 0:02:20]} 16... c5 {[%clk 0:02:33.8]} 17.
dxe5 {[%clk 0:02:03.7]} 17... dxe5 {[%clk 0:02:33.5]} 18. Na4 {[%clk 0:02:00.8]}
18... Be4 {[%clk 0:02:13.6]} 19. Rbc1 {[%clk 0:01:53.4]} 19... Nxa4 {[%clk
0:02:01.6]} 20. Qxa4 {[%clk 0:01:54.3]} 20... Rab8 {[%clk 0:01:56.8]} 21. Nd2
{[%clk 0:01:42.8]} 21... Ba8 {[%clk 0:01:51.3]} 22. Bf3 {[%clk 0:01:30.8]} 22...
e4 {[%clk 0:01:40]} 23. Be2 {[%clk 0:01:30.8]} 23... Rbd8 {[%clk 0:01:34.3]} 24.
Rfd1 {[%clk 0:01:29.5]} 24... Ne6 {[%clk 0:01:33.2]} 25. Nb3 {[%clk 0:01:27.9]}
25... Rxd1+ {[%clk 0:01:15.8]} 26. Rxd1 {[%clk 0:01:27.9]} 26... Rd8 {[%clk
0:01:16.7]} 27. Rxd8+ {[%clk 0:01:24.4]} 27... Nxd8 {[%clk 0:01:17.6]} 28. Qb5
{[%clk 0:01:14.6]} 28... Bf8 {[%clk 0:01:15.2]} 29. Qb8 {[%clk 0:01:09.5]} 29...
Bc6 {[%clk 0:01:07.6]} 30. Be5 {[%clk 0:00:48.6]} 30... Ne6 {[%clk 0:01:03]} 31.
Na5 {[%clk 0:00:42]} 31... Ba4 {[%clk 0:00:52.6]} 32. Bc3 {[%clk 0:00:42.2]}
32... Qd7 {[%clk 0:00:47.6]} 33. h4 {[%clk 0:00:36]} 33... Kf7 {[%clk 0:00:39]}
34. h5 {[%clk 0:00:35]} 34... Qc7 {[%clk 0:00:35.9]} 35. hxg6+ {[%clk
0:00:21.9]} 35... hxg6 {[%clk 0:00:35.5]} 36. Qb2 {[%clk 0:00:22.8]} 36... Bg7
{[%clk 0:00:31.3]} 37. Nb3 {[%clk 0:00:18.6]} 37... Bxb3 {[%clk 0:00:29.3]} 38.
axb3 {[%clk 0:00:18]} 38... a5 {[%clk 0:00:27]} 39. g4 {[%clk 0:00:13.7]} 39...
f4 {[%clk 0:00:15.3]} 40. Bxg7 {[%clk 0:00:10.6]} 40... Nxg7 {[%clk 0:00:16.2]}
41. exf4 {[%clk 0:00:09.5]} 41... Qxf4 {[%clk 0:00:14.3]} 42. Qc3 {[%clk
0:00:09]} 42... Ne6 {[%clk 0:00:14.9]} 43. Qxa5 {[%clk 0:00:06.5]} 43... Nd4
{[%clk 0:00:15]} 44. Bd1 {[%clk 0:00:05.8]} 44... Qc1 {[%clk 0:00:13.8]} 45.
Qc7+ {[%clk 0:00:06]} 45... Kf6 {[%clk 0:00:09.6]} 46. Qd6+ {[%clk 0:00:06.3]}
46... Kf7 {[%clk 0:00:09.9]} 47. Qd7+ {[%clk 0:00:05.3]} 47... Kg8 {[%clk
0:00:09.8]} 48. Qd8+ {[%clk 0:00:04.3]} 48... Kf7 {[%clk 0:00:09.6]} 49. Qd7+
{[%clk 0:00:04.5]} 49... Kf6 {[%clk 0:00:10.2]} 50. Qd6+ {[%clk 0:00:04.8]}
50... Ne6 {[%clk 0:00:10.8]} 51. Kg2 {[%clk 0:00:04.5]} 51... g5 {[%clk
0:00:11.1]} 52. Be2 {[%clk 0:00:03.4]} 52... Qc3 {[%clk 0:00:10.9]} 53. Kf1
{[%clk 0:00:02.6]} 53... Kf7 {[%clk 0:00:10.7]} 54. Qd7+ {[%clk 0:00:02.6]}
54... Kf6 {[%clk 0:00:11.4]} 55. Qd5 {[%clk 0:00:02]} 55... Qa1+ {[%clk
0:00:11.6]} 0-1

[Event "Early-Titled-Tuesday-Blitz-February-13-2024"]
[Site "Chess.com"]
[Date "2024.02.13"]
[Round "3"]
[White "Bigfish1995"]
[Black "OhanyanEminChess"]
[Result "1-0"]
[WhiteElo "3175"]
[BlackElo "2803"]
[TimeControl "180+1"]
[EndTime "8:33:11 PST"]
[Termination "Bigfish1995 won by resignation"]

1. e4 {[%clk 0:02:53]} 1... c5 {[%clk 0:02:58.2]} 2. Nf3 {[%clk 0:02:51.6]} 2...
e6 {[%clk 0:02:58]} 3. c3 {[%clk 0:02:47.9]} 3... d5 {[%clk 0:02:55.6]} 4. exd5
{[%clk 0:02:47]} 4... Qxd5 {[%clk 0:02:56.5]} 5. d4 {[%clk 0:02:40.5]} 5... Nf6
{[%clk 0:02:56.7]} 6. Be2 {[%clk 0:02:37]} 6... cxd4 {[%clk 0:02:49.9]} 7. Nxd4
{[%clk 0:02:26.3]} 7... Qxg2 {[%clk 0:02:32.7]} 8. Bf3 {[%clk 0:02:23.8]} 8...
Qh3 {[%clk 0:02:31.8]} 9. Bf4 {[%clk 0:02:02.4]} 9... Nd5 {[%clk 0:01:57.9]} 10.
Bxd5 {[%clk 0:01:20.6]} 10... exd5 {[%clk 0:01:58.3]} 11. Qe2+ {[%clk
0:01:20.1]} 11... Be7 {[%clk 0:01:35.2]} 12. Rg1 {[%clk 0:01:17.8]} 12... Qh4
{[%clk 0:00:43.3]} 13. Bg5 {[%clk 0:00:51.5]} 13... Qe4 {[%clk 0:00:43.3]} 14.
Bxe7 {[%clk 0:00:51.8]} 14... Kxe7 {[%clk 0:00:44.2]} 15. Rxg7 {[%clk
0:00:47.8]} 15... Kf6 {[%clk 0:00:37.9]} 16. Rg3 {[%clk 0:00:45.3]} 16... Re8
{[%clk 0:00:14.9]} 17. Qxe4 {[%clk 0:00:42.3]} 17... Rxe4+ {[%clk 0:00:15.8]}
18. Kf1 {[%clk 0:00:35.4]} 18... Nc6 {[%clk 0:00:16]} 19. Nd2 {[%clk 0:00:35.3]}
19... Rh4 {[%clk 0:00:10.1]} 20. N2f3 {[%clk 0:00:34.5]} 20... Rf4 {[%clk
0:00:10.8]} 21. Ne2 {[%clk 0:00:33.1]} 21... Rg4 {[%clk 0:00:08.7]} 22. Rd1
{[%clk 0:00:32.5]} 22... Rxg3 {[%clk 0:00:08.1]} 23. hxg3 {[%clk 0:00:29.5]}
23... Bh3+ {[%clk 0:00:06.6]} 24. Kg1 {[%clk 0:00:30]} 24... Bg4 {[%clk
0:00:07.1]} 25. Kg2 {[%clk 0:00:29.6]} 25... Rd8 {[%clk 0:00:04.6]} 26. Ned4
{[%clk 0:00:22.5]} 26... Nxd4 {[%clk 0:00:02.6]} 27. Rxd4 {[%clk 0:00:21.9]}
27... Bf5 {[%clk 0:00:02.4]} 28. Nd2 {[%clk 0:00:21.3]} 28... Ke5 {[%clk
0:00:02.4]} 29. Nf3+ {[%clk 0:00:18.7]} 29... Kf6 {[%clk 0:00:02.2]} 30. Kf1
{[%clk 0:00:19.3]} 30... Be6 {[%clk 0:00:01.7]} 31. Ke2 {[%clk 0:00:19]} 31...
Ra8 {[%clk 0:00:02]} 32. Rf4+ {[%clk 0:00:18.8]} 32... Kg7 {[%clk 0:00:02]} 33.
Nd4 {[%clk 0:00:18.1]} 33... Re8 {[%clk 0:00:01.8]} 34. Kd2 {[%clk 0:00:18.8]}
34... Bd7 {[%clk 0:00:02.1]} 35. a3 {[%clk 0:00:18.9]} 35... Re5 {[%clk
0:00:02.4]} 36. Nc2 {[%clk 0:00:19.3]} 36... Rh5 {[%clk 0:00:02.4]} 37. Ne3
{[%clk 0:00:19.8]} 37... Be6 {[%clk 0:00:02.8]} 38. Kd3 {[%clk 0:00:20.1]} 38...
Rh1 {[%clk 0:00:03]} 39. Kd4 {[%clk 0:00:20.2]} 39... Rb1 {[%clk 0:00:03.3]} 40.
b4 {[%clk 0:00:20.1]} 40... Ra1 {[%clk 0:00:03.7]} 41. a4 {[%clk 0:00:16]} 41...
b6 {[%clk 0:00:02.9]} 42. Ke5 {[%clk 0:00:15.2]} 42... Rxa4 {[%clk 0:00:02.8]}
43. Nxd5 {[%clk 0:00:15.8]} 43... Bxd5 {[%clk 0:00:03.2]} 44. Kxd5 {[%clk
0:00:15.6]} 44... Ra2 {[%clk 0:00:03.1]} 45. c4 {[%clk 0:00:15.7]} 45... Rd2+
{[%clk 0:00:02.1]} 46. Kc6 {[%clk 0:00:16.2]} 46... a5 {[%clk 0:00:02.2]} 47.
bxa5 {[%clk 0:00:16]} 47... bxa5 {[%clk 0:00:03.1]} 48. Kb5 {[%clk 0:00:16.4]}
48... Ra2 {[%clk 0:00:02.8]} 49. c5 {[%clk 0:00:16.8]} 49... Kf8 {[%clk
0:00:03.2]} 50. c6 {[%clk 0:00:16.3]} 50... Ke7 {[%clk 0:00:03.6]} 51. Rd4
{[%clk 0:00:15.3]} 51... a4 {[%clk 0:00:02.5]} 52. Rxa4 {[%clk 0:00:14.7]} 52...
Rc2 {[%clk 0:00:01.6]} 53. Rc4 {[%clk 0:00:15]} 53... Rb2+ {[%clk 0:00:01.5]}
54. Ka6 {[%clk 0:00:15.6]} 54... Kd8 {[%clk 0:00:01.4]} 55. Rf4 {[%clk
0:00:16.2]} 55... Kc7 {[%clk 0:00:01.3]} 56. Rf6 {[%clk 0:00:15.7]} 56... Rb3
{[%clk 0:00:01.7]} 57. Ka5 {[%clk 0:00:15.9]} 57... Rb2 {[%clk 0:00:02.1]} 58.
Ka4 {[%clk 0:00:15.7]} 58... h5 {[%clk 0:00:02.5]} 59. f3 {[%clk 0:00:14.6]}
59... Rg2 {[%clk 0:00:02.7]} 60. Kb5 {[%clk 0:00:14.1]} 60... Rb2+ {[%clk
0:00:01.8]} 61. Kc5 {[%clk 0:00:14.8]} 61... Rc2+ {[%clk 0:00:02.4]} 62. Kd5
{[%clk 0:00:15.5]} 62... Rd2+ {[%clk 0:00:02.7]} 63. Ke4 {[%clk 0:00:16.2]}
63... Rc2 {[%clk 0:00:01.9]} 64. Kf4 {[%clk 0:00:15.4]} 64... Rc4+ {[%clk
0:00:01.7]} 65. Kg5 {[%clk 0:00:15.9]} 65... Rc5+ {[%clk 0:00:02.3]} 66. Kh4
{[%clk 0:00:16.4]} 66... Rc1 {[%clk 0:00:02.2]} 67. Rxf7+ {[%clk 0:00:16.7]}
67... Kxc6 {[%clk 0:00:03.1]} 68. Kxh5 {[%clk 0:00:17.1]} 1-0

[Event "Early-Titled-Tuesday-Blitz-February-13-2024"]
[Site "Chess.com"]
[Date "2024.02.13"]
[Round "3"]
[White "HATilay"]
[Black "IMRosen"]
[Result "1-0"]
[WhiteElo "2505"]
[BlackElo "2674"]
[TimeControl "180+1"]
[EndTime "8:33:12 PST"]
[Termination "HATilay won by resignation"]

1. e4 {[%clk 0:03:00.9]} 1... c5 {[%clk 0:02:59.8]} 2. Nf3 {[%clk 0:03:01.1]}
2... Nc6 {[%clk 0:03:00]} 3. Bb5 {[%clk 0:03:00.4]} 3... e6 {[%clk 0:03:00.5]}
4. O-O {[%clk 0:03:00.2]} 4... Nge7 {[%clk 0:03:00.6]} 5. Re1 {[%clk 0:03:00.7]}
5... a6 {[%clk 0:03:01.1]} 6. Bf1 {[%clk 0:02:59.9]} 6... b5 {[%clk 0:03:00.9]}
7. a4 {[%clk 0:02:55.4]} 7... b4 {[%clk 0:02:58.2]} 8. d4 {[%clk 0:02:55.8]}
8... cxd4 {[%clk 0:02:55.3]} 9. Nxd4 {[%clk 0:02:56.5]} 9... Nxd4 {[%clk
0:02:54.4]} 10. Qxd4 {[%clk 0:02:57.4]} 10... Nc6 {[%clk 0:02:53.6]} 11. Qd1
{[%clk 0:02:57.3]} 11... Qc7 {[%clk 0:02:49.9]} 12. Nd2 {[%clk 0:02:57.5]} 12...
Be7 {[%clk 0:02:41.3]} 13. Nc4 {[%clk 0:02:57.3]} 13... O-O {[%clk 0:02:39.3]}
14. e5 {[%clk 0:02:40.1]} 14... f6 {[%clk 0:02:31.9]} 15. exf6 {[%clk
0:01:37.6]} 15... Bxf6 {[%clk 0:02:32]} 16. Qd6 {[%clk 0:01:30.8]} 16... Be5
{[%clk 0:02:06.8]} 17. Qxc7 {[%clk 0:01:30.7]} 17... Bxc7 {[%clk 0:02:06.8]} 18.
a5 {[%clk 0:01:07]} 18... Nd4 {[%clk 0:01:56.3]} 19. Bd3 {[%clk 0:01:06.3]}
19... Bb7 {[%clk 0:01:56.1]} 20. Be3 {[%clk 0:00:59.4]} 20... Nf5 {[%clk
0:01:56.1]} 21. Bb6 {[%clk 0:00:57]} 21... Rac8 {[%clk 0:01:42.3]} 22. f3 {[%clk
0:00:33]} 22... Bb8 {[%clk 0:01:37.9]} 23. Rad1 {[%clk 0:00:30.7]} 23... Rf6
{[%clk 0:01:03.9]} 24. b3 {[%clk 0:00:31]} 24... Bd5 {[%clk 0:00:54.3]} 25. Ne5
{[%clk 0:00:22.1]} 25... d6 {[%clk 0:00:26.8]} 26. Nd7 {[%clk 0:00:15.8]} 26...
Rf7 {[%clk 0:00:16.2]} 27. Nxb8 {[%clk 0:00:15.5]} 27... Rxb8 {[%clk 0:00:17.1]}
28. Bxa6 {[%clk 0:00:15.6]} 28... Ra8 {[%clk 0:00:15.3]} 29. Bd3 {[%clk
0:00:16.1]} 29... Kf8 {[%clk 0:00:13.9]} 30. a6 {[%clk 0:00:15.9]} 30... Ke7
{[%clk 0:00:11.2]} 31. Bb5 {[%clk 0:00:13.4]} 31... Kf6 {[%clk 0:00:07.4]} 32.
Bf2 {[%clk 0:00:12.3]} 32... Rff8 {[%clk 0:00:06.2]} 33. a7 {[%clk 0:00:12.4]}
33... Rfc8 {[%clk 0:00:05.3]} 34. Rd2 {[%clk 0:00:10.5]} 34... Rc7 {[%clk
0:00:05.6]} 35. Ra1 {[%clk 0:00:10.5]} 35... Bb7 {[%clk 0:00:04]} 36. Bd3 {[%clk
0:00:09.6]} 36... d5 {[%clk 0:00:03.9]} 37. Bb5 {[%clk 0:00:09.2]} 37... h6
{[%clk 0:00:03]} 38. Bd3 {[%clk 0:00:08.4]} 38... g6 {[%clk 0:00:03]} 39. Kf1
{[%clk 0:00:07.6]} 39... Rcc8 {[%clk 0:00:03.6]} 40. g4 {[%clk 0:00:07]} 40...
Nd6 {[%clk 0:00:03.6]} 41. Re2 {[%clk 0:00:06]} 41... e5 {[%clk 0:00:03.9]} 42.
Ba6 {[%clk 0:00:04.9]} 42... Bxa6 {[%clk 0:00:03.9]} 43. Rxa6 {[%clk 0:00:05.8]}
43... Ke6 {[%clk 0:00:02.8]} 44. f4 {[%clk 0:00:05.7]} 44... e4 {[%clk 0:00:03]}
45. f5+ {[%clk 0:00:06.4]} 45... gxf5 {[%clk 0:00:03.9]} 46. Bg3 {[%clk
0:00:07.1]} 46... Rd8 {[%clk 0:00:03.3]} 47. gxf5+ {[%clk 0:00:07.3]} 47... Ke7
{[%clk 0:00:03.9]} 48. f6+ {[%clk 0:00:07.6]} 48... Ke6 {[%clk 0:00:04.6]} 49.
f7 {[%clk 0:00:08.2]} 49... Rd7 {[%clk 0:00:04]} 50. Rf2 {[%clk 0:00:08]} 50...
e3 {[%clk 0:00:02.1]} 51. Rf3 {[%clk 0:00:07.5]} 51... Rxf7 {[%clk 0:00:02.1]}
52. Rxf7 {[%clk 0:00:07.3]} 52... Kxf7 {[%clk 0:00:02.1]} 53. Bxd6 {[%clk
0:00:08]} 53... Ke6 {[%clk 0:00:01.4]} 54. Bb8+ {[%clk 0:00:08.6]} 54... Kf5
{[%clk 0:00:01.6]} 55. Ke2 {[%clk 0:00:09.1]} 55... d4 {[%clk 0:00:02.1]} 56.
Rxh6 {[%clk 0:00:09.3]} 56... Ke4 {[%clk 0:00:02.4]} 57. Rh4+ {[%clk 0:00:09.5]}
57... Kd5 {[%clk 0:00:02.9]} 58. Rg4 {[%clk 0:00:09.3]} 58... Ke6 {[%clk
0:00:02.5]} 59. h4 {[%clk 0:00:09.7]} 59... Kf5 {[%clk 0:00:03.1]} 60. Rxd4
{[%clk 0:00:09.9]} 60... Kg6 {[%clk 0:00:03.4]} 61. Rc4 {[%clk 0:00:10.3]} 61...
Kf5 {[%clk 0:00:03.7]} 62. Rxb4 {[%clk 0:00:10.9]} 62... Kg6 {[%clk 0:00:04.3]}
63. Re4 {[%clk 0:00:11.5]} 63... Kh6 {[%clk 0:00:04.8]} 64. Rxe3 {[%clk
0:00:12.1]} 64... Kh7 {[%clk 0:00:05.7]} 65. Re4 {[%clk 0:00:12.7]} 65... Kh8
{[%clk 0:00:06.4]} 66. b4 {[%clk 0:00:13.2]} 66... Kh7 {[%clk 0:00:06.5]} 67. b5
{[%clk 0:00:13.8]} 67... Rxa7 {[%clk 0:00:07.2]} 68. Bxa7 {[%clk 0:00:13.7]} 1-0

[Event "Early-Titled-Tuesday-Blitz-February-13-2024"]
[Site "Chess.com"]
[Date "2024.02.13"]
[Round "3"]
[White "Leonid_Starozhilov"]
[Black "Philosopherrr"]
[Result "1-0"]
[WhiteElo "2742"]
[BlackElo "2400"]
[TimeControl "180+1"]
[EndTime "8:33:15 PST"]
[Termination "Leonid_Starozhilov won by checkmate"]

1. e4 {[%clk 0:03:00.9]} 1... e5 {[%clk 0:02:56.4]} 2. Nf3 {[%clk 0:03:00.4]}
2... Nc6 {[%clk 0:02:56.2]} 3. Nc3 {[%clk 0:03:01]} 3... Nf6 {[%clk 0:02:56.2]}
4. Bb5 {[%clk 0:03:01.5]} 4... Bb4 {[%clk 0:02:55.9]} 5. Bxc6 {[%clk 0:03:01.8]}
5... bxc6 {[%clk 0:02:55.8]} 6. d3 {[%clk 0:03:02.7]} 6... d6 {[%clk 0:02:56.3]}
7. h3 {[%clk 0:03:02.8]} 7... h6 {[%clk 0:02:55.1]} 8. Bd2 {[%clk 0:03:01.7]}
8... O-O {[%clk 0:02:55.4]} 9. O-O {[%clk 0:03:01.4]} 9... Rb8 {[%clk
0:02:55.8]} 10. b3 {[%clk 0:03:00.4]} 10... Re8 {[%clk 0:02:55.3]} 11. Ne2
{[%clk 0:03:00.4]} 11... Ba3 {[%clk 0:02:52.8]} 12. Ng3 {[%clk 0:02:55]} 12...
d5 {[%clk 0:02:52.9]} 13. Re1 {[%clk 0:02:43.8]} 13... Bd6 {[%clk 0:02:44.6]}
14. Bc3 {[%clk 0:02:34.4]} 14... d4 {[%clk 0:02:37.4]} 15. Bd2 {[%clk
0:02:34.2]} 15... Nh7 {[%clk 0:02:34.8]} 16. Nh2 {[%clk 0:02:29.4]} 16... Kh8
{[%clk 0:02:30.4]} 17. Qh5 {[%clk 0:02:25.6]} 17... Qf6 {[%clk 0:02:28.7]} 18.
Ng4 {[%clk 0:02:16.2]} 18... Qg6 {[%clk 0:02:14]} 19. Rf1 {[%clk 0:02:14.4]}
19... Qxh5 {[%clk 0:01:53.4]} 20. Nxh5 {[%clk 0:02:15.3]} 20... f5 {[%clk
0:01:53.8]} 21. exf5 {[%clk 0:02:08.5]} 21... Bxf5 {[%clk 0:01:53.8]} 22. f3
{[%clk 0:02:07.5]} 22... Bg6 {[%clk 0:01:49]} 23. Ng3 {[%clk 0:02:04.1]} 23...
Rf8 {[%clk 0:01:38]} 24. Rae1 {[%clk 0:01:51.8]} 24... Rbe8 {[%clk 0:01:37.4]}
25. Ne4 {[%clk 0:01:48.3]} 25... h5 {[%clk 0:01:20.3]} 26. Ngf2 {[%clk
0:01:46.7]} 26... Nf6 {[%clk 0:01:21]} 27. Re2 {[%clk 0:01:26.9]} 27... Nd5
{[%clk 0:01:16.1]} 28. Rfe1 {[%clk 0:01:27.1]} 28... Be7 {[%clk 0:01:12.7]} 29.
Nd1 {[%clk 0:01:17.5]} 29... Nf4 {[%clk 0:01:09.1]} 30. Bxf4 {[%clk 0:01:12.3]}
30... Rxf4 {[%clk 0:01:07.4]} 31. Nb2 {[%clk 0:01:05.4]} 31... Bb4 {[%clk
0:01:01.4]} 32. Rf1 {[%clk 0:01:02.1]} 32... h4 {[%clk 0:00:56.6]} 33. Nc4
{[%clk 0:01:01.8]} 33... Bf7 {[%clk 0:00:56.6]} 34. Ng5 {[%clk 0:00:45.3]} 34...
Bd6 {[%clk 0:00:41.9]} 35. Nxf7+ {[%clk 0:00:42.3]} 35... Rxf7 {[%clk
0:00:41.6]} 36. Rfe1 {[%clk 0:00:35.5]} 36... Rf5 {[%clk 0:00:35.9]} 37. Re4
{[%clk 0:00:21.9]} 37... Kg8 {[%clk 0:00:32]} 38. Rxh4 {[%clk 0:00:19.4]} 38...
Bb4 {[%clk 0:00:31]} 39. Re2 {[%clk 0:00:18.1]} 39... Be7 {[%clk 0:00:28]} 40.
Rhe4 {[%clk 0:00:17.4]} 40... Bf6 {[%clk 0:00:28.6]} 41. f4 {[%clk 0:00:16.9]}
41... c5 {[%clk 0:00:25.6]} 42. Nxe5 {[%clk 0:00:17.1]} 42... Kh7 {[%clk
0:00:19.6]} 43. Ng4 {[%clk 0:00:16.6]} 43... Rxe4 {[%clk 0:00:18.7]} 44. Rxe4
{[%clk 0:00:16]} 44... Bh4 {[%clk 0:00:17.6]} 45. Kh2 {[%clk 0:00:15.5]} 45...
Rf8 {[%clk 0:00:16.3]} 46. g3 {[%clk 0:00:15.8]} 46... Bd8 {[%clk 0:00:16.4]}
47. h4 {[%clk 0:00:13.6]} 47... c6 {[%clk 0:00:16.1]} 48. Ne5 {[%clk 0:00:14]}
48... Re8 {[%clk 0:00:15.8]} 49. Kg2 {[%clk 0:00:12.8]} 49... Bc7 {[%clk
0:00:15.5]} 50. Nxc6 {[%clk 0:00:11.2]} 50... Rf8 {[%clk 0:00:15.5]} 51. Kf3
{[%clk 0:00:10.9]} 51... Rf6 {[%clk 0:00:15.9]} 52. Ne5 {[%clk 0:00:11.1]} 52...
Ra6 {[%clk 0:00:16.5]} 53. a4 {[%clk 0:00:10.9]} 53... Bd6 {[%clk 0:00:16.3]}
54. Nc4 {[%clk 0:00:11.2]} 54... Bf8 {[%clk 0:00:16.5]} 55. f5 {[%clk
0:00:10.9]} 55... Rf6 {[%clk 0:00:16.9]} 56. g4 {[%clk 0:00:11.4]} 56... a6
{[%clk 0:00:17]} 57. h5 {[%clk 0:00:11.6]} 57... Rf7 {[%clk 0:00:16.4]} 58. Re6
{[%clk 0:00:11.6]} 58... Be7 {[%clk 0:00:16.6]} 59. Ke4 {[%clk 0:00:11.9]} 59...
Bg5 {[%clk 0:00:17.1]} 60. Ne5 {[%clk 0:00:12.4]} 60... Rb7 {[%clk 0:00:16.8]}
61. Re8 {[%clk 0:00:11.8]} 61... Bf6 {[%clk 0:00:16.8]} 62. Ng6 {[%clk
0:00:11.3]} 62... Kh6 {[%clk 0:00:16.6]} 63. Kf4 {[%clk 0:00:11.4]} 63... Bg5+
{[%clk 0:00:17.3]} 64. Kf3 {[%clk 0:00:11.9]} 64... Bf6 {[%clk 0:00:18]} 65. Nf4
{[%clk 0:00:11.2]} 65... Kg5 {[%clk 0:00:18.2]} 66. Kg3 {[%clk 0:00:09.6]} 66...
Re7 {[%clk 0:00:17]} 67. Ne6+ {[%clk 0:00:09.4]} 67... Kh6 {[%clk 0:00:16.8]}
68. Rh8# {[%clk 0:00:09.6]} 1-0

[Event "Early-Titled-Tuesday-Blitz-February-13-2024"]
[Site "Chess.com"]
[Date "2024.02.13"]
[Round "3"]
[White "sokidze"]
[Black "deribas12345"]
[Result "0-1"]
[WhiteElo "2828"]
[BlackElo "2591"]
[TimeControl "180+1"]
[EndTime "8:33:17 PST"]
[Termination "deribas12345 won by resignation"]

1. d4 {[%clk 0:03:00.9]} 1... Nf6 {[%clk 0:02:55.9]} 2. Nc3 {[%clk 0:03:01.5]}
2... e6 {[%clk 0:02:55.7]} 3. Bf4 {[%clk 0:03:01.2]} 3... d5 {[%clk 0:02:51.9]}
4. Nb5 {[%clk 0:03:00.7]} 4... Na6 {[%clk 0:02:51.4]} 5. e3 {[%clk 0:03:01.1]}
5... c6 {[%clk 0:02:45]} 6. Nc3 {[%clk 0:03:00.7]} 6... Nc7 {[%clk 0:02:45.1]}
7. Nf3 {[%clk 0:03:00.7]} 7... Bd6 {[%clk 0:02:45.1]} 8. Ne5 {[%clk 0:03:01.2]}
8... O-O {[%clk 0:02:44.7]} 9. Bd3 {[%clk 0:03:00.7]} 9... h6 {[%clk 0:02:36.3]}
10. Qf3 {[%clk 0:02:52.9]} 10... Nb5 {[%clk 0:01:57.2]} 11. Nxb5 {[%clk
0:02:34]} 11... cxb5 {[%clk 0:01:55.5]} 12. O-O-O {[%clk 0:02:34]} 12... Nd7
{[%clk 0:01:00.6]} 13. Bxb5 {[%clk 0:01:46]} 13... Bxe5 {[%clk 0:00:59.9]} 14.
dxe5 {[%clk 0:01:45.7]} 14... Qa5 {[%clk 0:00:58]} 15. Bxd7 {[%clk 0:01:45.7]}
15... Bxd7 {[%clk 0:00:57.7]} 16. Kb1 {[%clk 0:01:45.2]} 16... Rfc8 {[%clk
0:00:50.7]} 17. Qe2 {[%clk 0:00:43.4]} 17... Rc4 {[%clk 0:00:47.3]} 18. b3
{[%clk 0:00:40.8]} 18... Rc7 {[%clk 0:00:39.9]} 19. Rd4 {[%clk 0:00:37.4]} 19...
Rac8 {[%clk 0:00:38]} 20. Qd2 {[%clk 0:00:34.4]} 20... Qa3 {[%clk 0:00:27.9]}
21. Rc1 {[%clk 0:00:32.5]} 21... a5 {[%clk 0:00:26.3]} 22. c3 {[%clk 0:00:28.1]}
22... Bb5 {[%clk 0:00:22.5]} 23. Qb2 {[%clk 0:00:26.1]} 23... Qe7 {[%clk
0:00:22.3]} 24. f3 {[%clk 0:00:21]} 24... a4 {[%clk 0:00:20.7]} 25. e4 {[%clk
0:00:19.4]} 25... dxe4 {[%clk 0:00:19.6]} 26. c4 {[%clk 0:00:20]} 26... Bc6
{[%clk 0:00:18.3]} 27. fxe4 {[%clk 0:00:20.3]} 27... axb3 {[%clk 0:00:14.6]} 28.
axb3 {[%clk 0:00:21.2]} 28... Ra8 {[%clk 0:00:14.6]} 29. Rcd1 {[%clk 0:00:20.6]}
29... Qb4 {[%clk 0:00:13.3]} 30. Bd2 {[%clk 0:00:15]} 30... Qc5 {[%clk
0:00:12.6]} 31. Be3 {[%clk 0:00:14.5]} 31... Qb4 {[%clk 0:00:12.5]} 32. Rd8+
{[%clk 0:00:13.9]} 32... Rxd8 {[%clk 0:00:12.2]} 33. Rxd8+ {[%clk 0:00:14.8]}
33... Kh7 {[%clk 0:00:12.9]} 34. Bd2 {[%clk 0:00:12.5]} 34... Bxe4+ {[%clk
0:00:12.6]} 35. Kc1 {[%clk 0:00:11.4]} 35... Qc5 {[%clk 0:00:11.4]} 36. Qd4
{[%clk 0:00:07.1]} 36... Qxd4 {[%clk 0:00:11.7]} 37. Rxd4 {[%clk 0:00:07]} 37...
Bxg2 {[%clk 0:00:12.6]} 38. Ba5 {[%clk 0:00:06.1]} 38... Rc6 {[%clk 0:00:10.5]}
39. Rd7 {[%clk 0:00:06.2]} 39... b5 {[%clk 0:00:09.5]} 40. Rxf7 {[%clk
0:00:02.9]} 40... bxc4 {[%clk 0:00:10]} 41. b4 {[%clk 0:00:03.7]} 41... c3
{[%clk 0:00:08.6]} 42. Rc7 {[%clk 0:00:02.2]} 42... Kg6 {[%clk 0:00:03.8]} 43.
Kc2 {[%clk 0:00:01.8]} 43... Be4+ {[%clk 0:00:03.6]} 44. Kb3 {[%clk 0:00:01.6]}
44... Rxc7 {[%clk 0:00:04.1]} 45. Bxc7 {[%clk 0:00:01.3]} 45... c2 {[%clk
0:00:05]} 46. Kb2 {[%clk 0:00:01.9]} 46... Kf5 {[%clk 0:00:05.7]} 47. b5 {[%clk
0:00:02.5]} 47... g5 {[%clk 0:00:05.7]} 48. b6 {[%clk 0:00:02.8]} 48... h5
{[%clk 0:00:06]} 49. b7 {[%clk 0:00:03.3]} 49... Bxb7 {[%clk 0:00:06.3]} 50.
Kxc2 {[%clk 0:00:04.2]} 50... Kg4 {[%clk 0:00:06.5]} 51. Bd8 {[%clk 0:00:03]}
51... Kf4 {[%clk 0:00:06.6]} 52. Kd2 {[%clk 0:00:03.2]} 52... g4 {[%clk
0:00:07]} 53. Bf6 {[%clk 0:00:01.9]} 53... Kf3 {[%clk 0:00:06.8]} 54. Bh4 {[%clk
0:00:01.9]} 54... Kg2 {[%clk 0:00:06.4]} 55. Bg3 {[%clk 0:00:02.4]} 55... h4
{[%clk 0:00:07]} 56. Bxh4 {[%clk 0:00:01.7]} 56... Kxh2 {[%clk 0:00:07.7]} 57.
Ke1 {[%clk 0:00:01.7]} 57... g3 {[%clk 0:00:08.2]} 58. Bg5 {[%clk 0:00:01.4]}
58... g2 {[%clk 0:00:08.6]} 59. Bf4+ {[%clk 0:00:02]} 59... Kh1 {[%clk
0:00:08.6]} 60. Be3 {[%clk 0:00:02.4]} 60... g1=Q+ {[%clk 0:00:09.1]} 61. Bxg1
{[%clk 0:00:02.6]} 61... Kxg1 {[%clk 0:00:10]} 0-1